[Event "Aktobe Open 2022"]
[Site "Aktobe"]
[Date "2022.06.17"]
[Round "5.6"]
[White "Nesterov, Arseniy"]
[Black "Moisseyenko, Ilya"]
[Result "1-0"]
[ECO "D15"]
[WhiteElo "2569"]
[BlackElo "2291"]
[Annotator "TA"]
[PlyCount "89"]
[EventDate "2022.06.14"]
[EventType "swiss"]
[EventCountry "KAZ"]
[SourceTitle "playchess.com"]
[Source "ChessBase"]
[SourceQuality "1"]
[TimeControl "5400+30"]

{[%evp 9,89,23,33,31,31,21,27,20,21,11,20,11,20,0,20,23,25,13,25,15,15,16,11,13,10,0,8,10,14,21,27,11,66,65,71,57,52,4,33,0,0,0,0,0,0,0,0,0,72,64,77,61,100,100,226,204,202,202,202,202,202,202,202,209,29987,29988,29988,29989,29990,29991,29991,29991,29992,29991,29991,29992,29992,29991,29992,29993,29993,29994]} 1. d4 {[%emt 0:00:02]} d5 {[%emt 0:02:39]} 2. c4 {[%emt 0:00:09]} c6 {[%emt 0:00:26]} 3. Nf3 {[%emt 0:00:09]} Nf6 {[%emt 0:00:07]} 4. Nc3 {[%emt 0:00:06]} a6 {[%emt 0:01:29]} 5. e3 {[%emt 0:00:38]} Bf5 {[%emt 0:00:22]} 6. Be2 {[%emt 0:02:34] D15: Slav Defence: 4 Nc3 a6 and gambit lines after 4 Nc3 dxc4.} h6 {[%emt 0:03:56]} 7. Bd3 {[%emt 0:02:17]} Bxd3 {[%emt 0:00:47]} 8. Qxd3 {[%emt 0:00:02] White has an edge.} e6 {[%emt 0:00:08]} 9. O-O {[%emt 0:04:08]} Bb4 {[%emt 0:00:19]} 10. Bd2 {[%emt 0:00:52][%cal Oc3d5] With the idea Nxd5!} O-O {[%emt 0:00:11] [#]} 11. Rfb1 $146 {[%emt 0:09:41]} ({Predecessor:} 11. Rfd1 Ba5 12. Rab1 Nbd7 13. b4 Bc7 14. e4 Nb6 15. cxd5 cxd5 16. e5 Nfd7 17. Ne2 {0-1 (42) Tomashevsky,E (2713)-Fedoseev,V (2718) St Petersburg 2017}) 11... Bxc3 {[%emt 0:19:38]} (11... Nbd7 12. Nxd5 $1 exd5 13. Bxb4 $16) 12. Bxc3 {[%emt 0:00:28]} Ne4 {[%emt 0:00:22]} 13. a4 {[%emt 0:05:07]} Nd7 {[%emt 0:00:39]} 14. Nd2 {[%emt 0:02:49]} f5 {[%emt 0:07:34]} 15. f3 {[%emt 0:00:39]} (15. b3 {feels hotter.} Qc7 16. Rf1 Rf7 17. Rac1) 15... Nxd2 {[%emt 0:00:11]} 16. Bxd2 {[%emt 0:00:10]} Rf7 {[%emt 0:10:04]} 17. Be1 {[%emt 0:13:00][%cal Bd2e1,Be1g3,Bg3d6][%mdl 32]} Qg5 {[%emt 0:12:07]} 18. Ra3 {[%emt 0:03:59]} Nb6 {[%emt 0:03:43]} 19. c5 {[%emt 0:02:43]} Nd7 {[%emt 0:00:04][%cal Bb6d7,Bd7f6,Bf6e4][%mdl 32]} 20. Bg3 {[%emt 0:00:43]} (20. Qb3 $5 {[%cal Rb3b7]} Nf8 21. Bg3 $14) 20... Re8 {[%emt 0:00:34]} ({Better is} 20... e5 $11) 21. Bd6 {[%emt 0:03:51]} Qh5 {[%emt 0:02:25]} 22. Rb3 {[%emt 0:05:21]} e5 {[%emt 0:02:45]} 23. Qc3 {[%emt 0:01:04]} (23. Rxb7 Nxc5 24. Bxc5 Rxb7 $11) (23. Qd2 $14) 23... e4 {[%emt 0:05:43]} 24. fxe4 {[%emt 0:06:27]} (24. Rxb7 exf3 25. gxf3 Ne5 26. Bxe5 Rxb7 $17) (24. f4 $5 {[%cal Rb3b7]}) 24... Nf6 $1 {[%emt 0:00:07]} 25. e5 {[%emt 0:07:04]} Ne4 {[%emt 0:00:05]} 26. Qc1 {[%emt 0:00:59]} Re6 {[%emt 0:01:33]} 27. Qd1 $1 $36 {[%emt 0:00:19][%mdl 2048] Against Qe2. Black is under pressure.} Qh4 {[%emt 0:01:10]} 28. Qe2 {[%emt 0:03:54] Prevents Qf2+.} g5 {[%emt 0:06:46]} (28... f4 $11 29. exf4 Rxf4) 29. Rf1 $16 {[%emt 0:01:57]} Rg6 {[%emt 0:03:22]} 30. Rd3 {[%emt 0:04:29]} f4 {[%emt 0:04:36][%cal Oe4g3] White must now prevent ...Ng3!} 31. Rf3 {[%emt 0:01:25] Against Ng3} g4 {[%emt 0:01:59] Against Rh3. This costs Black the game.} (31... Qg4 $16) 32. Rxf4 $18 {[%emt 0:00:23]} Rxf4 33. exf4 {[%emt 0:00:01] aiming for f5.} g3 {[%emt 0:00:25]} 34. hxg3 {[%emt 0:02:22]} ({And not} 34. Rxg3 Rxg3 35. hxg3 Nxg3 $11) 34... Rxg3 {[%emt 0:01:45] [#]} 35. e6 $1 {[%emt 0:00:40]} Rxd3 {[%emt 0:02:51]} 36. Qxd3 {[%emt 0:00:26] Qe3 is the strong threat. Chess con chili.} Nxd6 $2 {[%emt 0:00:57]} (36... h5 $18 37. Qe3 Qg4) 37. Qg6+ {[%emt 0:01:23] White mates.} ({Weaker is} 37. cxd6 Qe1+ 38. Kh2 Qxe6 $16) 37... Kh8 {[%emt 0:01:40]} 38. g3 {[%emt 0:00:11]} ({Not} 38. cxd6 Qe1+ 39. Kh2 Qh4+ 40. Kg1 Qe1+ 41. Kh2 Qh4+ 42. Kg1 $11) 38... Qd8 {[%emt 0:01:52]} 39. cxd6 {[%emt 0:00:07] KQ-KQ} Qa5 {[%emt 0:00:10]} 40. Qxh6+ {[%emt 0:00:52]} Kg8 {[%emt 0:00:01]} 41. Qg5+ {[%emt 0:00:31]} Kh7 {[%emt 0:00:17]} 42. Qh5+ {[%emt 0:00:31]} Kg8 {[%emt 0:00:15]} 43. Qe2 {[%emt 0:00:09]} Qxa4 {[%emt 0:00:56]} 44. e7 {[%emt 0:00:08]} Qxd4+ {[%emt 0:00:04]} 45. Kg2 {[%emt 0:00:05] Weighted Error Value: White=0.05 (flawless) /Black=0.27 (precise)} 1-0

[Event "Aktobe Open 2022"]
[Site "Aktobe"]
[Date "2022.06.17"]
[Round "5.7"]
[White "Sivuk, Vitaly"]
[Black "Borisova, Ekaterina"]
[Result "1-0"]
[ECO "D87"]
[WhiteElo "2529"]
[BlackElo "2248"]
[Annotator "TA"]
[PlyCount "77"]
[EventDate "2022.06.14"]
[EventType "swiss"]
[EventCountry "KAZ"]
[SourceTitle "playchess.com"]
[Source "ChessBase"]
[SourceQuality "1"]
[TimeControl "5400+30"]

{[%evp 19,77,11,24,4,11,0,6,0,0,-14,0,0,0,0,2,4,12,5,11,0,0,0,0,0,0,0,0,0,0,0,0,0,50,39,52,52,74,41,131,130,682,688,1368,1318,1327,1293,1266,1114,1226,1688,1889,1800,29976,29977,29976,29976,29983,29984,29981,29981]} 1. d4 {[%emt 0:00:06]} Nf6 {[%emt 0:00:03]} 2. c4 {[%emt 0:00:10]} g6 {[%emt 0:00:04]} 3. Nc3 {[%emt 0:00:15]} d5 {[%emt 0:00:04]} 4. cxd5 {[%emt 0:02:50]} Nxd5 {[%emt 0:00:06]} 5. e4 {[%emt 0:00:10]} Nxc3 {[%emt 0:00:04]} 6. bxc3 {[%emt 0:00:06]} Bg7 {[%emt 0:00:01]} 7. Bc4 {[%emt 0:00:16]} c5 {[%emt 0:00:16]} 8. Ne2 {[%emt 0:00:09]} O-O {[%emt 0:00:06]} 9. Be3 {[%emt 0:00:44]} Nc6 {[%emt 0:00:12]} 10. O-O {[%emt 0:00:13]} b6 {[%emt 0:00:07]} 11. Rc1 {[%emt 0:04:53] D87: Exchange Grünfeld: Classical Line: Variations without ...cxd4.} Bb7 {[%emt 0:02:06]} 12. Qd2 {[%emt 0:00:15] 12.Bb5 is the modern continuation.} e6 {[%emt 0:05:39]} 13. f3 {[%emt 0:12:39] The position is equal.} Rc8 {[%emt 0:02:39]} 14. h4 {[%emt 0:02:32][%cal Bh2h4,Bh4h5,Bh5h6][%mdl 32]} cxd4 {[%emt 0:19:24]} (14... Qxh4 $2 15. Bg5 Qh5 16. Ng3 Qxg5 17. Qxg5 $18) 15. cxd4 {[%emt 0:00:07][%cal Oh4h5] [#]} Na5 $146 {[%emt 0:02:00]} (15... Qxh4 $2 16. Bg5 Qh5 17. Ng3 Bxd4+ 18. Rf2 Qxg5 19. Qxg5 $18) ({Predecessor:} 15... Qd6 16. h5 Rfd8 17. Rfd1 Na5 18. Bd3 Nc6 19. e5 Qb4 20. Be4 Qxd2 21. Rxd2 Na5 22. Bxb7 Rxc1+ 23. Nxc1 Nxb7 {½-½ (41) Gukesh,D (2599)-Svidler,P (2701) Struga 2021}) 16. Bd3 {[%emt 0:02:35]} Qd7 {[%emt 0:07:00]} 17. h5 {[%emt 0:00:42]} Rxc1 {[%emt 0:04:35]} 18. Rxc1 {[%emt 0:00:12]} Rc8 {[%emt 0:00:07]} 19. h6 {[%emt 0:00:58]} Bf8 {[%emt 0:00:32]} 20. Kf2 {[%emt 0:09:14]} Rxc1 {[%emt 0:02:53]} 21. Qxc1 {[%emt 0:00:35]} f6 {[%emt 0:00:42]} 22. Qc3 {[%emt 0:11:38]} Kf7 {[%emt 0:03:12]} 23. g4 {[%emt 0:02:48]} Qc6 {[%emt 0:07:35]} 24. g5 {[%emt 0:05:53]} Qxc3 {[%emt 0:03:44]} 25. Nxc3 {[%emt 0:00:06]} f5 {[%emt 0:00:22]} (25... fxg5 $11 26. Bxg5 Nc6) 26. d5 $14 {[%emt 0:07:53] [#] aiming for dxe6+.} fxe4 {[%emt 0:04:49]} 27. dxe6+ {[%emt 0:06:28]} Kxe6 {[%emt 0:00:08]} 28. Nxe4 {[%emt 0:00:07]} Be7 {[%emt 0:02:55] [#]} ({Black should try} 28... Kf7 $14) 29. f4 $1 $16 {[%emt 0:00:56] White is more active.} Bd5 $2 {[%emt 0:05:54][%mdl 8192] Black cannot hold the game after this.} (29... Kf7 $16) 30. Nc3 $18 {[%emt 0:00:42]} Bb4 {[%emt 0:03:33]} 31. f5+ {[%emt 0:03:11]} gxf5 {[%emt 0:01:02]} 32. Nxd5 {[%emt 0:00:09][%mdl 64] Deflection} Kxd5 {[%emt 0:00:05]} 33. Bxf5 {[%emt 0:00:05][%mdl 4096] Endgame KBB-KBN} Nc4 {[%emt 0:00:13]} 34. Bf4 {[%emt 0:01:14]} Ne5 {[%emt 0:02:59]} 35. Bxh7 {[%emt 0:00:17] A strong pair of Bishops.} Ng4+ {[%emt 0:00:03]} 36. Kg3 {[%emt 0:00:25] White mates.} Nxh6 {[%emt 0:00:05]} 37. gxh6 {[%emt 0:00:07]} Bc3 {[%emt 0:00:04]} 38. Kg4 {[%emt 0:00:12]} a5 {[%emt 0:00:29]} 39. Kf5 {[%emt 0:00:12] Weighted Error Value: White=0.05 (flawless) /Black=0.60} 1-0

[Event "Aktobe Open 2022"]
[Site "Aktobe"]
[Date "2022.06.17"]
[Round "5.8"]
[White "Vokhidov, Shamsiddin"]
[Black "Bekturov, Tamerlan"]
[Result "1-0"]
[ECO "B15"]
[WhiteElo "2536"]
[BlackElo "2241"]
[Annotator "RC"]
[PlyCount "43"]
[EventDate "2022.06.14"]
[EventType "swiss"]
[EventCountry "KAZ"]
[SourceTitle "playchess.com"]
[Source "ChessBase"]
[SourceQuality "1"]
[TimeControl "5400+30"]

1. e4 {[%emt 0:00:59]} c6 {[%emt 0:04:12]} 2. d4 {[%emt 0:00:06]} d5 {[%emt 0:00:11]} 3. Nc3 {[%emt 0:00:04]} dxe4 {[%emt 0:00:43]} 4. Nxe4 {[%emt 0:00:04]} Nf6 {[%emt 0:02:30]} 5. Nxf6+ {[%emt 0:00:09]} exf6 {[%emt 0:00:04]} 6. c3 {[%emt 0:00:04]} Bd6 {[%emt 0:00:08]} 7. Bd3 {[%emt 0:00:05]} Na6 {[%emt 0:00:21]} 8. Qc2 {[%emt 0:00:09]} Nc7 {[%emt 0:02:13]} 9. Ne2 {[%emt 0:00:09]} h5 {[%emt 0:06:20]} 10. Bd2 {[%emt 0:04:26]} Kf8 {[%emt 0:10:46]} 11. c4 {[%emt 0:05:08]} b5 {[%emt 0:07:52]} 12. c5 {[%emt 0:05:58]} Be7 {[%emt 0:00:14]} 13. Ba5 {[%emt 0:00:30]} Be6 {[%emt 0:12:03]} 14. a4 {[%emt 0:11:17]} b4 {[%emt 0:19:51]} 15. Nf4 {[%emt 0:02:35]} Qd7 {[%emt 0:04:49]} 16. Bxc7 {[%emt 0:00:38]} Qxc7 {[%emt 0:00:04]} 17. Nxe6+ {[%emt 0:00:06]} fxe6 {[%emt 0:00:04]} 18. Bc4 {[%emt 0:00:40]} Qf4 {[%emt 0:13:53]} 19. Bxe6 {[%emt 0:07:02]} Qxd4 {[%emt 0:00:07]} 20. O-O {[%emt 0:00:07]} Rh6 {[%emt 0:00:07]} 21. Rac1 {[%emt 0:00:34]} Re8 {[%emt 0:02:19]} 22. Ba2 {[%emt 0:01:54]} 1-0

[Event "Aktobe Open 2022"]
[Site "Aktobe"]
[Date "2022.06.17"]
[Round "5.9"]
[White "Dauletova, Gulmira"]
[Black "Aitbayev, Aslan"]
[Result "1-0"]
[ECO "C73"]
[WhiteElo "2220"]
[BlackElo "2420"]
[Annotator "TA"]
[PlyCount "91"]
[EventDate "2022.06.14"]
[EventType "swiss"]
[EventCountry "KAZ"]
[SourceTitle "playchess.com"]
[Source "ChessBase"]
[SourceQuality "1"]
[TimeControl "5400+30"]

{[%evp 13,91,0,0,0,0,0,9,2,16,-9,19,4,13,0,2,-22,0,-35,14,16,4,8,45,51,34,0,0,0,0,0,0,0,0,0,0,0,38,33,50,0,0,-37,-19,-32,-27,-35,-30,-31,-31,-32,-27,-22,-34,-34,79,77,579,579,579,570,563,556,730,719,787,777,704,660,672,636,561,561,955,955,29975,29975,29963,5313,29994,29995]} 1. e4 {[%emt 0:00:08]} e5 {[%emt 0:02:42]} 2. Nf3 {[%emt 0:00:13]} Nc6 {[%emt 0:00:04]} 3. Bb5 {[%emt 0:00:25]} a6 {[%emt 0:00:04]} 4. Ba4 {[%emt 0:00:08]} d6 {[%emt 0:00:03]} 5. Bxc6+ {[%emt 0:02:26]} bxc6 {[%emt 0:00:04]} 6. d4 {[%emt 0:00:06]} exd4 {[%emt 0:00:38]} 7. Nxd4 {[%emt 0:00:08]} c5 {[%emt 0:04:13]} 8. Nf3 {[%emt 0:00:21] Recently 8.Nc6 got a lot of attention. C73: Ruy Lopez: Deferred Steinitz: 5 Bxc6+.} Bb7 {[%emt 0:05:31]} 9. Nc3 {[%emt 0:07:40]} Ne7 {[%emt 0:05:26]} 10. O-O {[%emt 0:11:57] [#] The position is equal.} Ng6 $146 {[%emt 0:01:00]} ({Predecessor:} 10... Qd7 11. b3 g6 12. Nd5 Bg7 13. Rb1 O-O 14. c4 f5 15. Bg5 Nxd5 16. exd5 f4 {0-1 (35) Wallis,I (2110)-Srebrnic,A (2189) England 2017}) 11. Bg5 {[%emt 0:06:12]} Qd7 {[%emt 0:09:42]} 12. Nd5 {[%emt 0:16:29]} h6 {[%emt 0:01:53]} 13. Bd2 {[%emt 0:00:11]} Be7 {[%emt 0:01:20]} 14. Bc3 {[%emt 0:00:25]} O-O {[%emt 0:01:24]} 15. Qd2 {[%emt 0:02:11]} Qg4 {[%emt 0:15:12]} (15... Rae8 $15 {might be stronger.}) 16. Rfe1 $11 {[%emt 0:16:34]} Bxd5 {[%emt 0:11:11]} 17. h3 {[%emt 0:00:26]} Qxe4 {[%emt 0:03:39]} 18. Rxe4 {[%emt 0:01:07]} Bxe4 {[%emt 0:00:04]} 19. Qd1 {[%emt 0:08:47]} Rfe8 {[%emt 0:05:26]} 20. a3 {[%emt 0:05:19]} Nf4 {[%emt 0:06:54]} 21. Bd2 {[%emt 0:03:55]} Ne6 {[%emt 0:01:50]} 22. Bc3 {[%emt 0:02:48]} d5 {[%emt 0:02:06][%cal Bd6d5,Bd5d4,Bd4d3][%mdl 32]} 23. Nd2 {[%emt 0:05:14]} Bg6 {[%emt 0:00:59]} 24. Be5 {[%emt 0:00:34]} Bd6 {[%emt 0:13:13]} 25. Bxd6 {[%emt 0:01:06]} cxd6 {[%emt 0:00:01]} 26. c4 {[%emt 0:02:42]} (26. c3 $14) 26... d4 {[%emt 0:01:32]} 27. Qg4 {[%emt 0:00:54]} Rab8 {[%emt 0:01:24]} 28. b3 {[%emt 0:00:03]} d3 {[%emt 0:00:44]} 29. Qg3 {[%emt 0:02:47]} Nd4 {[%emt 0:05:00] [#] And now ...Ne2+ would win.} 30. Qxd6 {[%emt 0:00:03]} Nxb3 {[%emt 0:00:04]} 31. Rd1 {[%emt 0:00:12]} Nxd2 {[%emt 0:00:55]} 32. Rxd2 {[%emt 0:00:02]} Rb1+ {[%emt 0:00:11]} 33. Kh2 {[%emt 0:00:01]} Re2 {[%emt 0:00:08]} (33... Rbe1 $15 {stays ahead.} 34. Kg3 R1e2) 34. Rxd3 $16 {[%emt 0:00:37] [#] Strongly threatening Rd2.} Bxd3 {[%emt 0:00:06][%mdl 8192] Black cannot hold the game after this.} (34... Rxf2 $16 {prevents the worst.} 35. Rd2 (35. Qxc5 Rbb2 $11) 35... Rxd2 36. Qxd2 Rb3) 35. Qd8+ $18 {[%emt 0:00:06]} Re8 {[%emt 0:00:21]} 36. Qxe8+ {[%emt 0:00:03][%mdl 4096] Endgame KQ-KRB} Kh7 {[%emt 0:00:02]} 37. Qxf7 {[%emt 0:00:10]} Ra1 {[%emt 0:02:20]} 38. Qd5 {[%emt 0:00:28][%csl LRc5,LRd3]} Rxa3 {[%emt 0:00:06]} 39. Qxc5 {[%emt 0:00:09]} Ra2 {[%emt 0:00:53]} 40. Qd4 {[%emt 0:01:08]} Bg6 {[%emt 0:00:07]} 41. c5 {[%emt 0:00:33]} Rc2 {[%emt 0:00:16]} 42. f4 {[%emt 0:00:26][%cal Bf2f4,Bf4f5,Bf5f6][%mdl 32]} a5 {[%emt 0:00:36]} 43. Qd5 {[%emt 0:00:44] Black must now prevent f5.} a4 {[%emt 0:00:53]} 44. f5 {[%emt 0:00:34]} Bh5 {[%emt 0:00:03]} 45. f6 {[%emt 0:00:16] Intending Qd3+ and mate.} Bg6 {[%emt 0:00:54]} 46. Qb7 {[%emt 0:00:35] Weighted Error Value: White=0.10 (very precise) /Black=0.69} 1-0

[Event "Aktobe Open 2022"]
[Site "Aktobe"]
[Date "2022.06.17"]
[Round "5.10"]
[White "Kostenko, Petr"]
[Black "Balmagambetov, Timur"]
[Result "1/2-1/2"]
[ECO "B27"]
[WhiteElo "2416"]
[BlackElo "1957"]
[Annotator "TA"]
[PlyCount "51"]
[EventDate "2022.06.14"]
[EventType "swiss"]
[EventCountry "KAZ"]
[SourceTitle "playchess.com"]
[Source "ChessBase"]
[SourceQuality "1"]
[TimeControl "5400+30"]

{[%evp 17,51,8,8,8,8,8,8,8,8,0,23,16,18,-20,-29,-27,-7,-688,-680,-661,-651,-1366,-897,-1843,-79,-60,0,0,0,0,0,0,0,0,0,0]} 1. e4 {[%emt 0:00:05]} c5 {[%emt 0:00:10]} 2. Nf3 {[%emt 0:00:07]} g6 {[%emt 0:00:05]} 3. c3 {[%emt 0:00:13]} d5 {[%emt 0:00:12]} 4. e5 {[%emt 0:00:05]} Nc6 {[%emt 0:00:46]} 5. d4 {[%emt 0:00:06]} Bg7 {[%emt 0:00:17]} 6. Bb5 {[%emt 0:02:45]} cxd4 {[%emt 0:12:04]} 7. cxd4 {[%emt 0:00:06]} Nh6 {[%emt 0:00:03][%cal Bg8h6,Bh6f5,Bf5d4][%mdl 32]} 8. O-O {[%emt 0:00:29]} O-O {[%emt 0:00:43]} 9. Nc3 {[%emt 0:04:35]} Bg4 {[%emt 0:01:24]} 10. Bxc6 {[%emt 0:00:39] B27: Sicilian: 2 Nf3, unusual Black 2nd moves.} bxc6 {[%emt 0:00:06]} 11. h3 {[%emt 0:00:10]} Bxf3 {[%emt 0:00:19]} 12. Qxf3 {[%emt 0:00:05]} Nf5 {[%emt 0:09:00]} 13. Qd3 {[%emt 0:00:24]} e6 {[%emt 0:11:21]} 14. Na4 {[%emt 0:04:56]} f6 {[%emt 0:00:32] [#]} 15. Qc3 $146 {[%emt 0:00:19]} (15. Nc5 $5 {[%cal Rc5e6]}) ({Predecessor:} 15. Nc5 Qe7 16. exf6 Bxf6 17. Nb3 e5 18. dxe5 Bxe5 19. f4 Bc7 20. Bd2 Bb6+ 21. Kh2 {0-1 (33) Darmanin,J (2058)-Constantinou,P (2057) Andorra 2017}) 15... fxe5 {[%emt 0:07:39]} 16. dxe5 {[%emt 0:00:06]} Qh4 {[%emt 0:00:09]} 17. g4 $2 {[%emt 0:02:38][%mdl 8192] [#]} (17. Nc5 $11 Nd4 18. g3 Ne2+ 19. Kg2) 17... Nd4 $1 $19 {[%emt 0:04:52][%mdl 512]} 18. Qxd4 {[%emt 0:01:42] And now Kg2 would win.} Rf3 $1 {[%emt 0:00:20]} 19. Re1 {[%emt 0:05:06]} Raf8 {[%emt 0:04:06][%cal Rf3f2]} 20. Be3 {[%emt 0:00:58]} Qxh3 $2 {[%emt 0:04:25]} (20... Rxh3 $19 {is more deadly. ( -> ...Rh1+)} 21. Kf1 Bxe5 $1 {[%mdl 512]}) 21. Nc5 $17 {[%emt 0:01:08] [#]} Rg3+ {[%emt 0:07:50]} 22. fxg3 $11 {[%emt 0:00:06] The position is equal.} Qxg3+ {[%emt 0:00:02]} 23. Kh1 {[%emt 0:00:07]} Qh3+ {[%emt 0:00:01]} 24. Kg1 {[%emt 0:00:06]} Qg3+ {[%emt 0:00:04]} 25. Kh1 {[%emt 0:00:05]} Qh3+ {[%emt 0:00:04]} 26. Kg1 {[%emt 0:00:03] Weighted Error Value: White=1.47/Black=0.71} 1/2-1/2

[Event "Aktobe Open 2022"]
[Site "Aktobe"]
[Date "2022.06.18"]
[Round "6.1"]
[White "Utegaliyev, Azamat"]
[Black "Ponkratov, Pavel"]
[Result "1/2-1/2"]
[ECO "C55"]
[WhiteElo "2463"]
[BlackElo "2624"]
[Annotator "TA"]
[PlyCount "78"]
[EventDate "2022.06.14"]
[EventType "swiss"]
[EventCountry "KAZ"]
[SourceTitle "playchess.com"]
[Source "ChessBase"]
[SourceQuality "1"]
[TimeControl "5400+30"]

{[%evp 13,78,6,9,10,20,29,38,26,29,29,33,13,33,41,36,63,63,20,110,40,50,45,47,41,52,37,31,23,24,32,70,70,72,72,75,72,72,72,84,84,80,86,102,104,101,88,85,72,68,68,75,67,76,74,70,63,66,16,18,0,0,0,12,0,0,0,18]} 1. e4 {[%emt 0:04:30]} e5 {[%emt 0:01:13]} 2. Bc4 {[%emt 0:00:14]} Nf6 {[%emt 0:00:06]} 3. d3 {[%emt 0:00:05][%cal Bd2d3,Bd3d4][%mdl 32]} Nc6 {[%emt 0:00:26]} 4. Nc3 {[%emt 0:00:11]} Na5 {[%emt 0:00:07]} 5. Bb3 {[%emt 0:01:18]} Nxb3 {[%emt 0:00:43]} 6. axb3 {[%emt 0:00:05]} Be7 {[%emt 0:00:47]} 7. Nf3 {[%emt 0:11:17]} d6 {[%emt 0:00:07]} 8. d4 {[%emt 0:00:17] [#] C55: Two Knights: 4 d3, 4 d4 exd4 5 e5 and Max Lange Attack.} Nd7 $146 {[%emt 0:06:50]} ({Predecessor:} 8... exd4 9. Qxd4 a6 10. Bg5 O-O 11. O-O-O Be6 12. e5 dxe5 13. Qxe5 Qc8 14. Qg3 c5 15. Rhe1 b5 {1-0 (34) Vysochin,S (2497)-Vetoshko,V (2506) Omelnyk 2019}) 9. O-O {[%emt 0:02:30]} c6 {[%emt 0:00:34]} 10. Be3 {[%emt 0:04:13] White is slightly better.} O-O {[%emt 0:00:23]} 11. Qd3 {[%emt 0:02:09]} Qc7 {[%emt 0:00:28]} 12. b4 {[%emt 0:04:01]} a6 {[%emt 0:06:25]} 13. b5 {[%emt 0:03:43]} cxb5 {[%emt 0:09:29]} 14. Nd5 {[%emt 0:29:10]} Qd8 {[%emt 0:00:06]} 15. Rfd1 {[%emt 0:05:15] 0x0.002229471662dp-1022s more active pieces. The black rooks are badly placed.} Bf6 {[%emt 0:11:28]} (15... Nf6 $11 {keeps the balance.}) 16. Qa3 {[%emt 0:08:57]} ({White should play} 16. dxe5 $16 Bxe5 17. Qb3 (17. Nxe5 Nxe5 18. Qd4 Bg4 $11)) 16... exd4 $14 {[%emt 0:00:42]} 17. Bxd4 {[%emt 0:08:36]} Bxd4 {[%emt 0:02:25]} 18. Rxd4 {[%emt 0:00:25]} Nb6 {[%emt 0:02:49]} 19. Nxb6 {[%emt 0:00:57]} (19. Ne3 {with more complications.} Be6 20. Rad1 Qc7 21. Rxd6 Rad8 22. Ng5) 19... Qxb6 {[%emt 0:00:06]} 20. Qxd6 {[%emt 0:00:07]} Qxd6 {[%emt 0:00:06]} 21. Rxd6 {[%emt 0:00:03]} Re8 {[%emt 0:00:11]} 22. Nd4 {[%emt 0:00:38]} Be6 {[%emt 0:04:01]} 23. Rd1 {[%emt 0:02:00]} Kf8 {[%emt 0:01:06]} 24. c3 {[%emt 0:00:54]} ({Of course not} 24. Nxe6+ Rxe6 25. Rxe6 fxe6 $14) 24... Rac8 {[%emt 0:00:08]} 25. f3 {[%emt 0:00:44]} Rc7 {[%emt 0:00:05]} 26. Kf2 {[%emt 0:00:26]} Bc8 {[%emt 0:00:07]} 27. g4 {[%emt 0:00:29]} g6 {[%emt 0:01:06]} 28. h4 {[%emt 0:00:54]} Ke7 {[%emt 0:00:29]} 29. Ne2 {[%emt 0:00:27]} Rd7 {[%emt 0:01:02]} 30. Rxd7+ {[%emt 0:00:39]} Bxd7 $16 {[%emt 0:00:06][%mdl 4096] Endgame KRB-KRN} 31. Nf4 {[%emt 0:00:14] [#] Black must now prevent Nd5+.} Be6 {[%emt 0:00:04]} 32. Nd5+ {[%emt 0:02:26]} Bxd5 {[%emt 0:00:46]} 33. Rxd5 $14 {[%emt 0:00:04] And now Re5+ would win. KR-KR} Rc8 {[%emt 0:00:06][%cal Ob5b4]} 34. Ke3 {[%emt 0:00:30]} Rc4 {[%emt 0:00:36]} 35. Kd3 {[%emt 0:02:23]} (35. Rd4 $14) 35... Ra4 $11 {[%emt 0:01:28] The position is equal.} 36. Rc5 {[%emt 0:00:26] Hoping for Rc7+.} Kd7 {[%emt 0:00:05] Inhibits Rc7+.} 37. Rd5+ {[%emt 0:00:05]} Ke7 {[%emt 0:00:03]} 38. Rc5 {[%emt 0:00:23] Strongly threatening Rc7+.} Kd7 {[%emt 0:00:04] Inhibits Rc7+.} 39. Rd5+ {[%emt 0:00:14]} Ke7 {[%emt 0:00:04] Weighted Error Value: White=0.09 (flawless) /Black=0.11 (very precise)} 1/2-1/2